[Event "Titled Tuesday Blitz November 08 Late 2022"]
[White "Guha, Eshan"]
[Black "Firouzja, Alireza"]
[WhiteFideId "30958628"]
[BlackFideId "12573981"]
[WhiteElo "2369"]
[BlackElo "2903"]
[Result "0-1"]
[Round "05"]
[TimeControl "180+1"]
[Date "2022.11.09"]
[WhiteClock "0:00:19"]
[BlackClock "0:02:57"]

1. d4 {[%clk 0:03:00]}  Nf6 {[%clk 0:02:59]} 2. c4 {[%clk 0:03:00]}  g6 {[%clk 0:03:00]} 3. g3 {[%clk 0:03:00]}  Bg7 {[%clk 0:03:01]} 4. Bg2 {[%clk 0:03:00]}  O-O {[%clk 0:03:02]} 5. Nc3 {[%clk 0:03:00]}  d6 {[%clk 0:03:02]} 6. Nf3 {[%clk 0:03:01]}  Nbd7 {[%clk 0:03:03]} 7. O-O {[%clk 0:03:01]}  e5 {[%clk 0:03:04]} 8. e4 {[%clk 0:02:58]}  c6 {[%clk 0:03:05]} 9. h3 {[%clk 0:02:40]}  exd4 {[%clk 0:03:05]} 10. Nxd4 {[%clk 0:02:40]}  Qb6 {[%clk 0:03:06]} 11. Nb3 {[%clk 0:02:26]}  Ne5 {[%clk 0:03:04]} 12. Be3 {[%clk 0:02:22]}  Qc7 {[%clk 0:03:04]} 13. Nd2 {[%clk 0:02:20]}  Re8 {[%clk 0:03:04]} 14. Qc2 {[%clk 0:02:12]}  a6 {[%clk 0:03:04]} 15. f4 {[%clk 0:02:11]}  Ned7 {[%clk 0:03:04]} 16. Bf2 {[%clk 0:02:06]}  Qb8 {[%clk 0:03:04]} 17. Rad1 {[%clk 0:02:05]}  b5 {[%clk 0:03:03]} 18. b3 {[%clk 0:01:50]}  Bb7 {[%clk 0:03:02]} 19. Rfe1 {[%clk 0:01:50]}  h5 {[%clk 0:02:58]} 20. Nf1 {[%clk 0:01:31]}  b4 {[%clk 0:02:58]} 21. Nb1 {[%clk 0:01:27]}  c5 {[%clk 0:02:59]} 22. Nbd2 {[%clk 0:01:26]}  a5 {[%clk 0:02:59]} 23. Ne3 {[%clk 0:01:25]}  a4 {[%clk 0:02:59]} 24. Nd5 {[%clk 0:01:25]}  Bxd5 {[%clk 0:02:59]} 25. exd5 {[%clk 0:01:24]}  axb3 {[%clk 0:03:00]} 26. axb3 {[%clk 0:01:24]}  Ra3 {[%clk 0:03:00]} 27. Nb1 {[%clk 0:01:21]}  Ra1 {[%clk 0:02:59]} 28. Nd2 {[%clk 0:01:20]}  Ra3 {[%clk 0:02:59]} 29. Nb1 {[%clk 0:01:19]}  Ra6 {[%clk 0:02:59]} 30. Nd2 {[%clk 0:01:15]}  Rxe1+ {[%clk 0:02:59]} 31. Rxe1 {[%clk 0:01:15]}  Qa8 {[%clk 0:03:00]} 32. Ne4 {[%clk 0:01:13]}  Ra2 {[%clk 0:03:01]} 33. Qd3 {[%clk 0:01:10]}  Nxe4 {[%clk 0:03:01]} 34. Bxe4 {[%clk 0:01:10]}  Bc3 {[%clk 0:03:00]} 35. Re2 {[%clk 0:01:09]}  Rxe2 {[%clk 0:03:00]} 36. Qxe2 {[%clk 0:01:09]}  Nf6 {[%clk 0:03:01]} 37. Bf3 {[%clk 0:01:09]}  Qa1+ {[%clk 0:03:00]} 38. Kg2 {[%clk 0:01:09]}  Qb1 {[%clk 0:03:01]} 39. Qd1 {[%clk 0:01:08]}  Qb2 {[%clk 0:03:01]} 40. Be2 {[%clk 0:01:02]}  Ne4 {[%clk 0:03:00]} 41. Kf3 {[%clk 0:00:55]}  Nd2+ {[%clk 0:03:00]} 42. Kg2 {[%clk 0:00:54]}  Qxb3 {[%clk 0:02:58]} 43. Qxb3 {[%clk 0:00:47]}  Nxb3 {[%clk 0:02:59]} 44. Bd1 {[%clk 0:00:47]}  Na5 {[%clk 0:02:57]} 45. Kf3 {[%clk 0:00:23]}  Nxc4 {[%clk 0:02:56]} 46. Ke4 {[%clk 0:00:21]}  f5+ {[%clk 0:02:56]} 47. Kd3 {[%clk 0:00:20]}  Nb6 {[%clk 0:02:57]} 48. Bb3 {[%clk 0:00:19]}  Kf8 {[%clk 0:02:57]} 0-1


[Site "https://www.chess.com"]

[Event "Titled Tuesday Blitz November 08 Late 2022"]
[White "Harish, Neeraj"]
[Black "Rodriguez Santiago, Jaime"]
[WhiteFideId "30958130"]
[BlackFideId "3100898"]
[WhiteElo "1815"]
[BlackElo "2025"]
[Result "0-1"]
[Round "05"]
[TimeControl "180+1"]
[Date "2022.11.09"]
[WhiteClock "0:00:02"]
[BlackClock "0:00:32"]

1. e4 {[%clk 0:03:00]}  c6 {[%clk 0:02:59]} 2. d4 {[%clk 0:03:00]}  d5 {[%clk 0:02:59]} 3. e5 {[%clk 0:02:59]}  Bf5 {[%clk 0:02:58]} 4. Nd2 {[%clk 0:02:59]}  e6 {[%clk 0:02:55]} 5. Nb3 {[%clk 0:02:58]}  Nd7 {[%clk 0:02:52]} 6. Nf3 {[%clk 0:02:57]}  c5 {[%clk 0:02:52]} 7. dxc5 {[%clk 0:02:54]}  Qc7 {[%clk 0:02:37]} 8. Bb5 {[%clk 0:02:31]}  Ne7 {[%clk 0:02:34]} 9. Bxd7+ {[%clk 0:02:21]}  Qxd7 {[%clk 0:02:34]} 10. O-O {[%clk 0:02:22]}  Nc6 {[%clk 0:02:33]} 11. Nbd4 {[%clk 0:02:18]}  Bg6 {[%clk 0:02:30]} 12. Nxc6 {[%clk 0:02:16]}  Qxc6 {[%clk 0:02:29]} 13. b4 {[%clk 0:02:16]}  Be7 {[%clk 0:02:26]} 14. Nd4 {[%clk 0:02:15]}  Qc7 {[%clk 0:02:23]} 15. Be3 {[%clk 0:02:12]}  a6 {[%clk 0:02:23]} 16. f4 {[%clk 0:02:05]}  O-O {[%clk 0:02:22]} 17. c3 {[%clk 0:02:03]}  Be4 {[%clk 0:02:20]} 18. Qh5 {[%clk 0:01:53]}  g6 {[%clk 0:02:16]} 19. Qe2 {[%clk 0:01:51]}  Rfc8 {[%clk 0:02:10]} 20. Nf3 {[%clk 0:01:35]}  a5 {[%clk 0:02:09]} 21. Nd2 {[%clk 0:01:22]}  axb4 {[%clk 0:02:05]} 22. cxb4 {[%clk 0:01:23]}  Bc2 {[%clk 0:02:01]} 23. Bd4 {[%clk 0:01:11]}  Ba4 {[%clk 0:01:59]} 24. g4 {[%clk 0:01:11]}  Qd7 {[%clk 0:01:57]} 25. Qg2 {[%clk 0:00:56]}  Bb5 {[%clk 0:01:55]} 26. Rf2 {[%clk 0:00:56]}  Ra4 {[%clk 0:01:52]} 27. a3 {[%clk 0:00:55]}  Rca8 {[%clk 0:01:49]} 28. Qg3 {[%clk 0:00:53]}  Rxb4 {[%clk 0:01:45]} 29. axb4 {[%clk 0:00:52]}  Rxa1+ {[%clk 0:01:44]} 30. Bxa1 {[%clk 0:00:52]}  d4 {[%clk 0:01:41]} 31. f5 {[%clk 0:00:50]}  exf5 {[%clk 0:01:38]} 32. gxf5 {[%clk 0:00:51]}  Bc6 {[%clk 0:01:29]} 33. Nc4 {[%clk 0:00:49]}  Qd5 {[%clk 0:01:29]} 34. Rc2 {[%clk 0:00:18]}  Qh1+ {[%clk 0:01:25]} 35. Kf2 {[%clk 0:00:17]}  Qxa1 {[%clk 0:01:20]} 36. f6 {[%clk 0:00:17]}  Bf8 {[%clk 0:01:20]} 37. Nd6 {[%clk 0:00:16]}  Bh6 {[%clk 0:01:09]} 38. e6 {[%clk 0:00:14]}  Be3+ {[%clk 0:01:05]} 39. Ke2 {[%clk 0:00:13]}  Qa6+ {[%clk 0:01:01]} 40. Nc4 {[%clk 0:00:10]}  Be8 {[%clk 0:00:39]} 41. Qb8 {[%clk 0:00:08]}  Qxe6 {[%clk 0:00:39]} 42. Nd6 {[%clk 0:00:02]}  Kf8 {[%clk 0:00:37]} 43. Qxe8+ {[%clk 0:00:01]}  Qxe8 {[%clk 0:00:36]} 44. Nxe8 {[%clk 0:00:02]}  Kxe8 {[%clk 0:00:36]} 45. Kd3 {[%clk 0:00:03]}  Kd7 {[%clk 0:00:36]} 46. Re2 {[%clk 0:00:03]}  Bg5 {[%clk 0:00:35]} 47. Rf2 {[%clk 0:00:04]}  Ke6 {[%clk 0:00:34]} 48. Kxd4 {[%clk 0:00:04]}  Bxf6+ {[%clk 0:00:34]} 49. Rxf6+ {[%clk 0:00:03]}  Kxf6 {[%clk 0:00:34]} 50. b5 {[%clk 0:00:04]}  Ke6 {[%clk 0:00:34]} 51. Ke4 {[%clk 0:00:04]}  g5 {[%clk 0:00:33]} 52. c6 {[%clk 0:00:02]}  f5+ {[%clk 0:00:32]} 0-1


[Site "https://www.chess.com"]

[Event "Titled Tuesday Blitz November 08 Late 2022"]
[White "Haszon, David"]
[Black "Salman, Pavel"]
[WhiteFideId "733610"]
[BlackFideId "24153753"]
[WhiteElo "2211"]
[BlackElo "2187"]
[Result "0-1"]
[Round "05"]
[TimeControl "180+1"]
[Date "2022.11.09"]
[WhiteClock "0:02:11"]
[BlackClock "0:02:37"]

1. d4 {[%clk 0:02:59]}  Nf6 {[%clk 0:02:49]} 2. Bf4 {[%clk 0:02:59]}  d6 {[%clk 0:02:49]} 3. Nc3 {[%clk 0:02:56]}  g6 {[%clk 0:02:49]} 4. e4 {[%clk 0:02:51]}  Bg7 {[%clk 0:02:49]} 5. Qd2 {[%clk 0:02:48]}  O-O {[%clk 0:02:47]} 6. Bh6 {[%clk 0:02:43]}  c6 {[%clk 0:02:46]} 7. Bxg7 {[%clk 0:02:36]}  Kxg7 {[%clk 0:02:47]} 8. h4 {[%clk 0:02:36]}  h5 {[%clk 0:02:47]} 9. Nf3 {[%clk 0:02:31]}  b5 {[%clk 0:02:47]} 10. Bd3 {[%clk 0:02:24]}  Nbd7 {[%clk 0:02:44]} 11. e5 {[%clk 0:02:15]}  dxe5 {[%clk 0:02:42]} 12. dxe5 {[%clk 0:02:11]}  Ng4 {[%clk 0:02:37]} 0-1


[Site "https://www.chess.com"]

[Event "Titled Tuesday Blitz November 08 Late 2022"]
[White "Ibarra Jerez, Jose Carlos"]
[Black "Kuzmicz, Krystian"]
[WhiteFideId "2226332"]
[BlackFideId "1119125"]
[WhiteElo "2638"]
[BlackElo "2380"]
[Result "1-0"]
[Round "05"]
[TimeControl "180+1"]
[Date "2022.11.08"]
[WhiteClock "0:00:02"]
[BlackClock "0:00:07"]

1. e4 {[%clk 0:02:58]}  c5 {[%clk 0:03:00]} 2. Nc3 {[%clk 0:02:57]}  g6 {[%clk 0:02:57]} 3. Nf3 {[%clk 0:02:56]}  Bg7 {[%clk 0:02:57]} 4. d4 {[%clk 0:02:57]}  cxd4 {[%clk 0:02:58]} 5. Nxd4 {[%clk 0:02:58]}  Nc6 {[%clk 0:02:58]} 6. Be3 {[%clk 0:02:58]}  Nf6 {[%clk 0:02:58]} 7. Bc4 {[%clk 0:02:59]}  O-O {[%clk 0:02:57]} 8. Bb3 {[%clk 0:02:58]}  Re8 {[%clk 0:02:57]} 9. f3 {[%clk 0:02:57]}  e6 {[%clk 0:02:57]} 10. f4 {[%clk 0:02:57]}  d5 {[%clk 0:02:57]} 11. e5 {[%clk 0:02:56]}  Nd7 {[%clk 0:02:55]} 12. Qf3 {[%clk 0:02:40]}  Nxd4 {[%clk 0:02:42]} 13. Bxd4 {[%clk 0:02:40]}  Qa5 {[%clk 0:02:41]} 14. h4 {[%clk 0:02:35]}  h5 {[%clk 0:02:28]} 15. g4 {[%clk 0:02:33]}  hxg4 {[%clk 0:02:21]} 16. Qxg4 {[%clk 0:02:33]}  Qb4 {[%clk 0:02:17]} 17. O-O-O {[%clk 0:02:30]}  a5 {[%clk 0:01:48]} 18. a3 {[%clk 0:02:30]}  Qe7 {[%clk 0:01:36]} 19. h5 {[%clk 0:02:30]}  Nf8 {[%clk 0:01:37]} 20. h6 {[%clk 0:01:45]}  Bh8 {[%clk 0:01:36]} 21. h7+ {[%clk 0:01:45]}  Nxh7 {[%clk 0:01:36]} 22. Qh3 {[%clk 0:01:43]}  f5 {[%clk 0:01:32]} 23. exf6 {[%clk 0:01:44]}  Bxf6 {[%clk 0:01:31]} 24. Bxf6 {[%clk 0:01:20]}  Nxf6 {[%clk 0:01:30]} 25. Rdg1 {[%clk 0:00:55]}  Qg7 {[%clk 0:01:30]} 26. Rg5 {[%clk 0:00:48]}  Kf7 {[%clk 0:01:18]} 27. Rhg1 {[%clk 0:00:47]}  Rh8 {[%clk 0:01:14]} 28. Qd3 {[%clk 0:00:46]}  Rh6 {[%clk 0:01:10]} 29. f5 {[%clk 0:00:46]}  Ra6 {[%clk 0:00:40]} 30. fxe6+ {[%clk 0:00:36]}  Bxe6 {[%clk 0:00:39]} 31. Nxd5 {[%clk 0:00:37]}  Rd6 {[%clk 0:00:31]} 32. c4 {[%clk 0:00:29]}  Rh3 {[%clk 0:00:24]} 33. Rxg6 {[%clk 0:00:22]}  Qh8 {[%clk 0:00:17]} 34. Qd4 {[%clk 0:00:11]}  Nxd5 {[%clk 0:00:15]} 35. Rg7+ {[%clk 0:00:07]}  Kf8 {[%clk 0:00:13]} 36. cxd5 {[%clk 0:00:08]}  Bf7 {[%clk 0:00:11]} 37. Qe5 {[%clk 0:00:06]}  Qh6+ {[%clk 0:00:11]} 38. Kb1 {[%clk 0:00:06]}  Re3 {[%clk 0:00:10]} 39. Rxf7+ {[%clk 0:00:02]}  Kxf7 {[%clk 0:00:11]} 40. Qd4 {[%clk 0:00:02]}  Qh7+ {[%clk 0:00:10]} 41. Bc2 {[%clk 0:00:02]}  Qh6 {[%clk 0:00:08]} 42. Qc4 {[%clk 0:00:02]}  Rd7 {[%clk 0:00:08]} 43. d6+ {[%clk 0:00:02]}  Kf8 {[%clk 0:00:08]} 44. Rf1+ {[%clk 0:00:03]}  Ke8 {[%clk 0:00:07]} 45. Qg8+ {[%clk 0:00:02]} 1-0


[Site "https://www.chess.com"]

[Event "Titled Tuesday Blitz November 08 Late 2022"]
[White "Jones, Gawain C B"]
[Black "Svane, Rasmus"]
[WhiteFideId "409561"]
[BlackFideId "4657101"]
[WhiteElo "2657"]
[BlackElo "2674"]
[Result "0-1"]
[Round "05"]
[TimeControl "180+1"]
[Date "2022.11.08"]
[WhiteClock "0:00:02"]
[BlackClock "0:00:33"]

1. Nf3 {[%clk 0:03:00]}  d5 {[%clk 0:02:57]} 2. g3 {[%clk 0:03:00]}  Nf6 {[%clk 0:02:52]} 3. Bg2 {[%clk 0:03:00]}  e6 {[%clk 0:02:53]} 4. O-O {[%clk 0:03:00]}  Be7 {[%clk 0:02:54]} 5. c4 {[%clk 0:03:00]}  O-O {[%clk 0:02:54]} 6. b3 {[%clk 0:03:00]}  d4 {[%clk 0:02:53]} 7. e3 {[%clk 0:02:58]}  c5 {[%clk 0:02:53]} 8. exd4 {[%clk 0:02:53]}  cxd4 {[%clk 0:02:52]} 9. Ne5 {[%clk 0:02:54]}  Qc7 {[%clk 0:02:50]} 10. f4 {[%clk 0:02:52]}  Nfd7 {[%clk 0:02:50]} 11. Nd3 {[%clk 0:02:48]}  Nc5 {[%clk 0:02:43]} 12. Nxc5 {[%clk 0:02:43]}  Bxc5 {[%clk 0:02:44]} 13. Ba3 {[%clk 0:02:39]}  Bxa3 {[%clk 0:02:35]} 14. Nxa3 {[%clk 0:02:39]}  Qc5 {[%clk 0:02:36]} 15. Nc2 {[%clk 0:02:32]}  d3+ {[%clk 0:02:21]} 16. Ne3 {[%clk 0:02:32]}  Nc6 {[%clk 0:02:22]} 17. Kh1 {[%clk 0:02:26]}  Rd8 {[%clk 0:02:21]} 18. a3 {[%clk 0:02:07]}  a5 {[%clk 0:02:15]} 19. b4 {[%clk 0:01:54]}  Qd4 {[%clk 0:02:00]} 20. b5 {[%clk 0:01:38]}  Ne7 {[%clk 0:02:00]} 21. a4 {[%clk 0:01:27]}  Ra7 {[%clk 0:01:59]} 22. c5 {[%clk 0:01:16]}  Qxc5 {[%clk 0:01:55]} 23. Rc1 {[%clk 0:01:16]}  Qd4 {[%clk 0:01:48]} 24. Rc4 {[%clk 0:01:14]}  Qd6 {[%clk 0:01:48]} 25. Qb3 {[%clk 0:00:27]}  b6 {[%clk 0:01:46]} 26. Rfc1 {[%clk 0:00:22]}  Bb7 {[%clk 0:01:46]} 27. Bc6 {[%clk 0:00:19]}  Ba8 {[%clk 0:01:32]} 28. Kg1 {[%clk 0:00:19]}  h6 {[%clk 0:01:31]} 29. Qc3 {[%clk 0:00:17]}  Bxc6 {[%clk 0:01:20]} 30. bxc6 {[%clk 0:00:17]}  Rc7 {[%clk 0:01:20]} 31. Qb2 {[%clk 0:00:09]}  Rxc6 {[%clk 0:01:03]} 32. Rxc6 {[%clk 0:00:09]}  Nxc6 {[%clk 0:01:04]} 33. Qxb6 {[%clk 0:00:09]}  Nd4 {[%clk 0:01:04]} 34. Qxd6 {[%clk 0:00:08]}  Rxd6 {[%clk 0:01:05]} 35. Rc8+ {[%clk 0:00:08]}  Kh7 {[%clk 0:01:05]} 36. Ra8 {[%clk 0:00:08]}  Nf3+ {[%clk 0:01:06]} 37. Kf2 {[%clk 0:00:07]}  Nxd2 {[%clk 0:01:07]} 38. Rxa5 {[%clk 0:00:06]}  Ne4+ {[%clk 0:01:07]} 39. Kf3 {[%clk 0:00:07]}  f5 {[%clk 0:01:04]} 40. Ra8 {[%clk 0:00:03]}  Nc3 {[%clk 0:00:45]} 41. Rc8 {[%clk 0:00:02]}  Nxa4 {[%clk 0:00:46]} 42. Rc4 {[%clk 0:00:01]}  Nb6 {[%clk 0:00:36]} 43. Rb4 {[%clk 0:00:02]}  Nd7 {[%clk 0:00:33]} 44. Nc4 {[%clk 0:00:01]}  Rd4 {[%clk 0:00:32]} 45. Ke3 {[%clk 0:00:01]}  d2 {[%clk 0:00:33]} 46. Kxd4 {[%clk 0:00:01]}  d1=Q+ {[%clk 0:00:33]} 47. Kc3 {[%clk 0:00:02]} 0-1


[Site "https://www.chess.com"]

[Event "Titled Tuesday Blitz November 08 Late 2022"]
[White "Kaganskiy, Gleb"]
[Black "Paiva, Henrique M A Albergaria"]
[WhiteFideId "4132025"]
[BlackFideId "1920995"]
[WhiteElo "2165"]
[BlackElo "1953"]
[Result "0-1"]
[Round "05"]
[TimeControl "180+1"]
[Date "2022.11.09"]
[WhiteClock "0:01:01"]
[BlackClock "0:01:23"]

1. e4 {[%clk 0:03:00]}  c5 {[%clk 0:02:54]} 2. Nf3 {[%clk 0:02:59]}  d6 {[%clk 0:02:54]} 3. Bb5+ {[%clk 0:02:52]}  Nd7 {[%clk 0:02:52]} 4. a4 {[%clk 0:02:51]}  Nf6 {[%clk 0:02:52]} 5. Nc3 {[%clk 0:02:39]}  g6 {[%clk 0:02:51]} 6. e5 {[%clk 0:02:30]}  dxe5 {[%clk 0:02:49]} 7. Nxe5 {[%clk 0:02:30]}  Bg7 {[%clk 0:02:49]} 8. d4 {[%clk 0:02:28]}  cxd4 {[%clk 0:02:40]} 9. Qxd4 {[%clk 0:02:27]}  O-O {[%clk 0:02:38]} 10. O-O {[%clk 0:02:14]}  a6 {[%clk 0:02:21]} 11. Bc4 {[%clk 0:02:08]}  Nxe5 {[%clk 0:02:14]} 12. Qxe5 {[%clk 0:02:07]}  Ng4 {[%clk 0:02:06]} 13. Qg3 {[%clk 0:02:04]}  Be5 {[%clk 0:01:55]} 14. Bf4 {[%clk 0:02:02]}  Qc7 {[%clk 0:01:43]} 15. Bxe5 {[%clk 0:01:45]}  Qxe5 {[%clk 0:01:43]} 16. Qxe5 {[%clk 0:01:41]}  Nxe5 {[%clk 0:01:43]} 17. Be2 {[%clk 0:01:39]}  Be6 {[%clk 0:01:41]} 18. Rfd1 {[%clk 0:01:29]}  Rac8 {[%clk 0:01:40]} 19. f4 {[%clk 0:01:18]}  Nc4 {[%clk 0:01:34]} 20. Bxc4 {[%clk 0:01:17]}  Rxc4 {[%clk 0:01:34]} 21. g3 {[%clk 0:01:14]}  Rfc8 {[%clk 0:01:32]} 22. Rd2 {[%clk 0:01:11]}  Rb4 {[%clk 0:01:28]} 23. Nd5 {[%clk 0:01:00]}  Bxd5 {[%clk 0:01:24]} 24. Rxd5 {[%clk 0:01:01]}  Rxc2 {[%clk 0:01:23]} 0-1


[Site "https://www.chess.com"]

[Event "Titled Tuesday Blitz November 08 Late 2022"]
[White "Kavutskiy, Konstantin"]
[Black "Yuan, Qingyu"]
[WhiteFideId "2026384"]
[BlackFideId "8609772"]
[WhiteElo "2338"]
[BlackElo "2359"]
[Result "1-0"]
[Round "05"]
[TimeControl "180+1"]
[Date "2022.11.09"]
[WhiteClock "0:00:41"]
[BlackClock "0:00:03"]

1. d4 {[%clk 0:03:00]}  d5 {[%clk 0:02:59]} 2. c4 {[%clk 0:02:59]}  e6 {[%clk 0:03:00]} 3. Nc3 {[%clk 0:02:57]}  Nf6 {[%clk 0:03:00]} 4. cxd5 {[%clk 0:02:57]}  exd5 {[%clk 0:03:01]} 5. Bg5 {[%clk 0:02:57]}  c6 {[%clk 0:03:02]} 6. e3 {[%clk 0:02:58]}  h6 {[%clk 0:03:02]} 7. Bh4 {[%clk 0:02:57]}  Be7 {[%clk 0:03:03]} 8. Bd3 {[%clk 0:02:57]}  O-O {[%clk 0:03:03]} 9. Nge2 {[%clk 0:02:58]}  Re8 {[%clk 0:03:03]} 10. O-O {[%clk 0:02:57]}  Nbd7 {[%clk 0:03:04]} 11. a4 {[%clk 0:02:55]}  a5 {[%clk 0:03:02]} 12. f3 {[%clk 0:02:55]}  Nb8 {[%clk 0:03:01]} 13. Qd2 {[%clk 0:02:49]}  Na6 {[%clk 0:03:01]} 14. Rad1 {[%clk 0:02:45]}  Nb4 {[%clk 0:02:56]} 15. Bb1 {[%clk 0:02:45]}  Ne4 {[%clk 0:02:39]} 16. fxe4 {[%clk 0:02:26]}  Bxh4 {[%clk 0:02:38]} 17. exd5 {[%clk 0:02:25]}  Bg5 {[%clk 0:02:15]} 18. Nf4 {[%clk 0:02:23]}  cxd5 {[%clk 0:02:09]} 19. Qf2 {[%clk 0:02:15]}  Re7 {[%clk 0:01:21]} 20. h4 {[%clk 0:02:08]}  Bxf4 {[%clk 0:01:17]} 21. Qxf4 {[%clk 0:02:07]}  Qc7 {[%clk 0:01:14]} 22. Qxc7 {[%clk 0:01:58]}  Rxc7 {[%clk 0:01:14]} 23. e4 {[%clk 0:01:58]}  Be6 {[%clk 0:01:12]} 24. e5 {[%clk 0:01:53]}  Rac8 {[%clk 0:01:09]} 25. Bf5 {[%clk 0:01:52]}  Rc4 {[%clk 0:01:00]} 26. Rf4 {[%clk 0:01:41]}  Nc6 {[%clk 0:00:40]} 27. Nb5 {[%clk 0:01:38]}  Rxa4 {[%clk 0:00:35]} 28. Nd6 {[%clk 0:01:34]}  Rc7 {[%clk 0:00:34]} 29. g3 {[%clk 0:01:11]}  Rb4 {[%clk 0:00:32]} 30. Rd2 {[%clk 0:01:10]}  a4 {[%clk 0:00:32]} 31. Ne8 {[%clk 0:01:00]}  Re7 {[%clk 0:00:31]} 32. Nd6 {[%clk 0:01:01]}  Rc7 {[%clk 0:00:31]} 33. Ne8 {[%clk 0:01:00]}  Re7 {[%clk 0:00:31]} 34. Nd6 {[%clk 0:01:01]}  Na5 {[%clk 0:00:32]} 35. Rdf2 {[%clk 0:00:58]}  Nc4 {[%clk 0:00:26]} 36. Bxe6 {[%clk 0:00:57]}  fxe6 {[%clk 0:00:26]} 37. Rf8+ {[%clk 0:00:55]}  Kh7 {[%clk 0:00:26]} 38. Nf7 {[%clk 0:00:55]}  Kg6 {[%clk 0:00:16]} 39. g4 {[%clk 0:00:49]}  h5 {[%clk 0:00:17]} 40. Rh8 {[%clk 0:00:45]}  Nxe5 {[%clk 0:00:03]} 41. gxh5# {[%clk 0:00:41]} 1-0


[Site "https://www.chess.com"]

[Event "Titled Tuesday Blitz November 08 Late 2022"]
[White "Koutlas, Nikolaos"]
[Black "Kosakowski, Jakub"]
[WhiteFideId "25827138"]
[BlackFideId "1185080"]
[WhiteElo "2167"]
[BlackElo "2463"]
[Result "0-1"]
[Round "05"]
[TimeControl "180+1"]
[Date "2022.11.09"]
[WhiteClock "0:01:18"]
[BlackClock "0:01:36"]

1. c4 {[%clk 0:02:54]}  e5 {[%clk 0:02:58]} 2. Nc3 {[%clk 0:02:55]}  Bb4 {[%clk 0:02:54]} 3. Nd5 {[%clk 0:02:54]}  a5 {[%clk 0:02:52]} 4. g3 {[%clk 0:02:53]}  d6 {[%clk 0:02:47]} 5. Bg2 {[%clk 0:02:51]}  Nd7 {[%clk 0:02:44]} 6. Nf3 {[%clk 0:02:50]}  c6 {[%clk 0:02:44]} 7. Nxb4 {[%clk 0:02:49]}  axb4 {[%clk 0:02:44]} 8. O-O {[%clk 0:02:49]}  Ngf6 {[%clk 0:02:44]} 9. d4 {[%clk 0:02:49]}  O-O {[%clk 0:02:43]} 10. dxe5 {[%clk 0:02:43]}  dxe5 {[%clk 0:02:43]} 11. Be3 {[%clk 0:02:43]}  Qe7 {[%clk 0:02:42]} 12. Qc2 {[%clk 0:02:38]}  Nc5 {[%clk 0:02:38]} 13. b3 {[%clk 0:02:29]}  Ng4 {[%clk 0:02:31]} 14. Bd2 {[%clk 0:02:27]}  Ne6 {[%clk 0:02:22]} 15. h3 {[%clk 0:02:25]}  Nf6 {[%clk 0:02:22]} 16. Rad1 {[%clk 0:02:17]}  e4 {[%clk 0:02:20]} 17. Ng5 {[%clk 0:02:11]}  Nd4 {[%clk 0:02:18]} 18. Bxb4 {[%clk 0:02:10]}  Qe5 {[%clk 0:01:45]} 19. Rxd4 {[%clk 0:02:07]}  Qxd4 {[%clk 0:01:43]} 20. Bxf8 {[%clk 0:02:06]}  Kxf8 {[%clk 0:01:44]} 21. Nxe4 {[%clk 0:02:06]}  Bf5 {[%clk 0:01:43]} 22. Qc3 {[%clk 0:01:52]}  Rd8 {[%clk 0:01:40]} 23. Qxd4 {[%clk 0:01:48]}  Rxd4 {[%clk 0:01:41]} 24. Nxf6 {[%clk 0:01:37]}  gxf6 {[%clk 0:01:40]} 25. Ra1 {[%clk 0:01:36]}  Rd2 {[%clk 0:01:40]} 26. Kf1 {[%clk 0:01:36]}  Ke7 {[%clk 0:01:38]} 27. Ke1 {[%clk 0:01:34]}  Rb2 {[%clk 0:01:38]} 28. e4 {[%clk 0:01:33]}  Be6 {[%clk 0:01:37]} 29. g4 {[%clk 0:01:28]}  Kd6 {[%clk 0:01:36]} 30. f4 {[%clk 0:01:20]}  Rxg2 {[%clk 0:01:35]} 31. f5 {[%clk 0:01:19]}  Rg1+ {[%clk 0:01:35]} 32. Kf2 {[%clk 0:01:18]}  Rxa1 {[%clk 0:01:36]} 0-1


[Site "https://www.chess.com"]